[Event "Titled Tuesday Blitz May 10 Early 2022"]
[White "Golubev, Mikhail"]
[Black "Polanco Nunez, Yoel Estarling"]
[WhiteFideId "14100983"]
[BlackFideId "6401783"]
[WhiteElo "2374"]
[BlackElo "2132"]
[Result "1-0"]
[Round "05"]
[TimeControl "180+1"]
[Date "2022.05.11"]
[WhiteClock "0:00:13"]
[BlackClock "0:00:01"]

1. e4 {[%clk 0:02:50]}  c5 {[%clk 0:02:59]} 2. Nf3 {[%clk 0:02:50]}  d6 {[%clk 0:03:00]} 3. d4 {[%clk 0:02:50]}  cxd4 {[%clk 0:03:01]} 4. Nxd4 {[%clk 0:02:50]}  Nf6 {[%clk 0:03:01]} 5. Nc3 {[%clk 0:02:51]}  a6 {[%clk 0:03:02]} 6. Bc4 {[%clk 0:02:50]}  b5 {[%clk 0:03:00]} 7. Bb3 {[%clk 0:02:49]}  Bb7 {[%clk 0:02:55]} 8. O-O {[%clk 0:02:49]}  Nc6 {[%clk 0:02:52]} 9. f4 {[%clk 0:02:22]}  e6 {[%clk 0:02:25]} 10. Nxc6 {[%clk 0:02:10]}  Bxc6 {[%clk 0:02:24]} 11. f5 {[%clk 0:02:10]}  e5 {[%clk 0:02:04]} 12. Qd3 {[%clk 0:01:32]}  h6 {[%clk 0:01:38]} 13. a3 {[%clk 0:01:21]}  Qb6+ {[%clk 0:01:32]} 14. Be3 {[%clk 0:01:16]}  Qb7 {[%clk 0:01:32]} 15. Bd5 {[%clk 0:01:13]}  Bxd5 {[%clk 0:01:27]} 16. exd5 {[%clk 0:01:13]}  Be7 {[%clk 0:01:20]} 17. Bf2 {[%clk 0:01:11]}  Rc8 {[%clk 0:01:09]} 18. Bh4 {[%clk 0:01:04]}  Rc4 {[%clk 0:01:09]} 19. Bxf6 {[%clk 0:01:02]}  Bxf6 {[%clk 0:01:10]} 20. Ne4 {[%clk 0:00:59]}  Qb6+ {[%clk 0:01:06]} 21. Kh1 {[%clk 0:00:59]}  Ke7 {[%clk 0:00:42]} 22. c3 {[%clk 0:00:58]}  a5 {[%clk 0:00:34]} 23. Nd2 {[%clk 0:00:50]}  Rc7 {[%clk 0:00:21]} 24. a4 {[%clk 0:00:41]}  b4 {[%clk 0:00:17]} 25. c4 {[%clk 0:00:38]}  b3 {[%clk 0:00:13]} 26. Nxb3 {[%clk 0:00:35]}  Rb8 {[%clk 0:00:12]} 27. Nd2 {[%clk 0:00:35]}  e4 {[%clk 0:00:07]} 28. Qxe4+ {[%clk 0:00:34]}  Kf8 {[%clk 0:00:07]} 29. Rab1 {[%clk 0:00:33]}  Re7 {[%clk 0:00:06]} 30. Qd3 {[%clk 0:00:31]}  Re3 {[%clk 0:00:06]} 31. Qc2 {[%clk 0:00:30]}  Rbe8 {[%clk 0:00:06]} 32. c5 {[%clk 0:00:29]}  dxc5 {[%clk 0:00:06]} 33. Nc4 {[%clk 0:00:29]}  Qb4 {[%clk 0:00:01]} 34. Nxe3 {[%clk 0:00:28]}  Rxe3 {[%clk 0:00:02]} 35. Qd1 {[%clk 0:00:27]}  Be5 {[%clk 0:00:02]} 36. Qh5 {[%clk 0:00:24]}  Kg8 {[%clk 0:00:01]} 37. f6 {[%clk 0:00:22]}  Bxf6 {[%clk 0:00:01]} 38. Qf5 {[%clk 0:00:22]}  Re5 {[%clk 0:00:01]} 39. Qc8+ {[%clk 0:00:21]}  Kh7 {[%clk 0:00:01]} 40. d6 {[%clk 0:00:21]}  Rh5 {[%clk 0:00:01]} 41. Rbd1 {[%clk 0:00:13]} 1-0


[Site "https://www.chess.com"]

[Event "Titled Tuesday Blitz May 10 Early 2022"]
[White "Gurevich, Dmitry"]
[Black "De Silva, L M S T"]
[WhiteFideId "2000407"]
[BlackFideId "9953698"]
[WhiteElo "2506"]
[BlackElo "1631"]
[Result "1-0"]
[Round "05"]
[TimeControl "180+1"]
[Date "2022.05.11"]
[WhiteClock "0:01:14"]
[BlackClock "0:00:17"]

1. d4 {[%clk 0:03:00]}  Nf6 {[%clk 0:02:59]} 2. c4 {[%clk 0:03:00]}  e6 {[%clk 0:02:59]} 3. Nf3 {[%clk 0:02:59]}  b6 {[%clk 0:02:59]} 4. g3 {[%clk 0:02:59]}  Bb7 {[%clk 0:02:59]} 5. Bg2 {[%clk 0:02:58]}  g6 {[%clk 0:03:00]} 6. Nc3 {[%clk 0:02:57]}  Bg7 {[%clk 0:02:59]} 7. O-O {[%clk 0:02:56]}  Ne4 {[%clk 0:02:58]} 8. Qc2 {[%clk 0:02:52]}  Nxc3 {[%clk 0:02:59]} 9. bxc3 {[%clk 0:02:49]}  O-O {[%clk 0:02:59]} 10. a4 {[%clk 0:02:48]}  Nc6 {[%clk 0:02:59]} 11. Ba3 {[%clk 0:02:44]}  d6 {[%clk 0:02:59]} 12. c5 {[%clk 0:02:37]}  bxc5 {[%clk 0:03:00]} 13. dxc5 {[%clk 0:02:37]}  d5 {[%clk 0:03:00]} 14. e3 {[%clk 0:02:33]}  Ba6 {[%clk 0:02:50]} 15. Rfd1 {[%clk 0:02:32]}  Na5 {[%clk 0:02:45]} 16. Nd4 {[%clk 0:02:28]}  Nc4 {[%clk 0:02:43]} 17. Bb4 {[%clk 0:02:27]}  Qc8 {[%clk 0:02:17]} 18. c6 {[%clk 0:02:07]}  Re8 {[%clk 0:02:16]} 19. e4 {[%clk 0:02:07]}  e5 {[%clk 0:02:06]} 20. Nb5 {[%clk 0:02:01]}  Bxb5 {[%clk 0:01:44]} 21. axb5 {[%clk 0:02:00]}  Qb8 {[%clk 0:01:24]} 22. exd5 {[%clk 0:01:55]}  Qxb5 {[%clk 0:01:22]} 23. Bf1 {[%clk 0:01:53]}  a5 {[%clk 0:01:22]} 24. Bxa5 {[%clk 0:01:42]}  Rxa5 {[%clk 0:01:16]} 25. Bxc4 {[%clk 0:01:41]}  Qc5 {[%clk 0:01:11]} 26. Rxa5 {[%clk 0:01:38]}  Qxa5 {[%clk 0:01:12]} 27. d6 {[%clk 0:01:37]}  cxd6 {[%clk 0:01:11]} 28. Rxd6 {[%clk 0:01:33]}  Qc5 {[%clk 0:01:10]} 29. Qd3 {[%clk 0:01:32]}  e4 {[%clk 0:01:06]} 30. Qd5 {[%clk 0:01:32]}  Qxd5 {[%clk 0:01:01]} 31. Bxd5 {[%clk 0:01:32]}  Bxc3 {[%clk 0:00:37]} 32. Rd7 {[%clk 0:01:31]}  Rf8 {[%clk 0:00:34]} 33. Rxf7 {[%clk 0:01:30]}  Ba5 {[%clk 0:00:24]} 34. c7 {[%clk 0:01:26]}  Rc8 {[%clk 0:00:20]} 35. Be6 {[%clk 0:01:15]}  Rxc7 {[%clk 0:00:17]} 36. Rxc7+ {[%clk 0:01:14]} 1-0


[Site "https://www.chess.com"]

[Event "Titled Tuesday Blitz May 10 Early 2022"]
[White "Guz, Ari"]
[Black "Jaskolka, Tomasz"]
[WhiteFideId "2825759"]
[BlackFideId "1170791"]
[WhiteElo "1913"]
[BlackElo "2073"]
[Result "1-0"]
[Round "05"]
[TimeControl "180+1"]
[Date "2022.05.11"]
[WhiteClock "0:00:38"]
[BlackClock "0:00:19"]

1. b3 {[%clk 0:03:00]}  d5 {[%clk 0:02:59]} 2. Nf3 {[%clk 0:03:00]}  Bg4 {[%clk 0:02:59]} 3. Bb2 {[%clk 0:02:59]}  Bxf3 {[%clk 0:03:00]} 4. exf3 {[%clk 0:03:00]}  e6 {[%clk 0:03:00]} 5. d4 {[%clk 0:02:58]}  Nf6 {[%clk 0:03:00]} 6. Bd3 {[%clk 0:02:58]}  c6 {[%clk 0:03:01]} 7. O-O {[%clk 0:02:59]}  Bd6 {[%clk 0:03:01]} 8. Qe2 {[%clk 0:02:59]}  Nbd7 {[%clk 0:03:02]} 9. c4 {[%clk 0:02:59]}  O-O {[%clk 0:03:02]} 10. Nd2 {[%clk 0:02:59]}  Re8 {[%clk 0:03:01]} 11. g3 {[%clk 0:02:53]}  g6 {[%clk 0:02:59]} 12. f4 {[%clk 0:02:53]}  Bf8 {[%clk 0:02:58]} 13. Nf3 {[%clk 0:02:52]}  Bg7 {[%clk 0:02:58]} 14. Ne5 {[%clk 0:02:53]}  a6 {[%clk 0:02:57]} 15. h4 {[%clk 0:02:49]}  Qc7 {[%clk 0:02:41]} 16. Rac1 {[%clk 0:02:46]}  Rac8 {[%clk 0:02:41]} 17. c5 {[%clk 0:02:38]}  Rcd8 {[%clk 0:02:28]} 18. Kg2 {[%clk 0:02:33]}  Nf8 {[%clk 0:02:27]} 19. Rh1 {[%clk 0:02:26]}  h5 {[%clk 0:02:25]} 20. a4 {[%clk 0:02:19]}  Qe7 {[%clk 0:01:56]} 21. b4 {[%clk 0:02:06]}  Ra8 {[%clk 0:01:56]} 22. f3 {[%clk 0:02:02]}  Qc7 {[%clk 0:01:50]} 23. Qd2 {[%clk 0:01:53]}  Qe7 {[%clk 0:01:48]} 24. Kf2 {[%clk 0:01:49]}  Qc7 {[%clk 0:01:48]} 25. Rhg1 {[%clk 0:01:45]}  Qe7 {[%clk 0:01:17]} 26. Kg2 {[%clk 0:01:45]}  Qc7 {[%clk 0:01:17]} 27. Kh3 {[%clk 0:01:45]}  Qe7 {[%clk 0:01:18]} 28. Qf2 {[%clk 0:01:30]}  Red8 {[%clk 0:01:18]} 29. g4 {[%clk 0:01:27]}  Re8 {[%clk 0:01:17]} 30. Rg2 {[%clk 0:01:20]}  Red8 {[%clk 0:01:12]} 31. Rcg1 {[%clk 0:01:16]}  Rdc8 {[%clk 0:01:13]} 32. f5 {[%clk 0:01:11]}  hxg4+ {[%clk 0:00:55]} 33. fxg4 {[%clk 0:01:11]}  Ne4 {[%clk 0:00:55]} 34. Qe3 {[%clk 0:00:57]}  b6 {[%clk 0:00:34]} 35. fxg6 {[%clk 0:00:51]}  f5 {[%clk 0:00:29]} 36. Bxe4 {[%clk 0:00:46]}  dxe4 {[%clk 0:00:27]} 37. Rf1 {[%clk 0:00:39]}  Bxe5 {[%clk 0:00:26]} 38. dxe5 {[%clk 0:00:37]}  Nxg6 {[%clk 0:00:20]} 39. Qh6 {[%clk 0:00:37]}  Qg7 {[%clk 0:00:17]} 40. Qxg7+ {[%clk 0:00:37]}  Kxg7 {[%clk 0:00:18]} 41. gxf5 {[%clk 0:00:38]}  exf5 {[%clk 0:00:18]} 42. Rfg1 {[%clk 0:00:38]}  Kf7 {[%clk 0:00:16]} 43. Rxg6 {[%clk 0:00:39]}  Rh8 {[%clk 0:00:17]} 44. e6+ {[%clk 0:00:39]}  Ke7 {[%clk 0:00:17]} 45. Bxh8 {[%clk 0:00:39]}  Rxh8 {[%clk 0:00:18]} 46. cxb6 {[%clk 0:00:39]}  e3 {[%clk 0:00:18]} 47. Rd1 {[%clk 0:00:38]}  f4 {[%clk 0:00:18]} 48. Rd7+ {[%clk 0:00:38]}  Ke8 {[%clk 0:00:19]} 49. b7 {[%clk 0:00:38]} 1-0


[Site "https://www.chess.com"]

[Event "Titled Tuesday Blitz May 10 Early 2022"]
[White "Hakobyan, Aram"]
[Black "Maksimovic, Bojan"]
[WhiteFideId "13306677"]
[BlackFideId "14408120"]
[WhiteElo "2557"]
[BlackElo "2448"]
[Result "1/2-1/2"]
[Round "05"]
[TimeControl "180+1"]
[Date "2022.05.10"]
[WhiteClock "0:00:22"]
[BlackClock "0:00:06"]

1. d4 {[%clk 0:03:00]}  Nf6 {[%clk 0:02:59]} 2. c4 {[%clk 0:03:01]}  g6 {[%clk 0:03:00]} 3. Nc3 {[%clk 0:03:01]}  Bg7 {[%clk 0:03:00]} 4. e4 {[%clk 0:02:59]}  d6 {[%clk 0:03:01]} 5. Be2 {[%clk 0:02:59]}  O-O {[%clk 0:03:00]} 6. Bg5 {[%clk 0:02:57]}  c6 {[%clk 0:02:27]} 7. Qd2 {[%clk 0:02:52]}  e5 {[%clk 0:02:26]} 8. d5 {[%clk 0:02:48]}  Na6 {[%clk 0:02:14]} 9. h4 {[%clk 0:02:45]}  Nc5 {[%clk 0:02:10]} 10. Bf3 {[%clk 0:02:41]}  cxd5 {[%clk 0:01:55]} 11. cxd5 {[%clk 0:02:40]}  Qa5 {[%clk 0:01:38]} 12. h5 {[%clk 0:02:35]}  Nb3 {[%clk 0:01:31]} 13. Qd1 {[%clk 0:02:12]}  Nxa1 {[%clk 0:01:29]} 14. h6 {[%clk 0:02:13]}  Bh8 {[%clk 0:01:29]} 15. Qxa1 {[%clk 0:02:13]}  b5 {[%clk 0:01:18]} 16. Ne2 {[%clk 0:02:10]}  b4 {[%clk 0:01:16]} 17. Nd1 {[%clk 0:02:10]}  b3+ {[%clk 0:01:13]} 18. Ndc3 {[%clk 0:02:09]}  Ba6 {[%clk 0:01:11]} 19. O-O {[%clk 0:02:08]}  bxa2 {[%clk 0:01:07]} 20. b4 {[%clk 0:01:31]}  Qxb4 {[%clk 0:01:05]} 21. Qxa2 {[%clk 0:01:32]}  Bxe2 {[%clk 0:01:05]} 22. Nxe2 {[%clk 0:01:33]}  Nxe4 {[%clk 0:00:35]} 23. Rb1 {[%clk 0:01:32]}  Nc3 {[%clk 0:00:29]} 24. Rxb4 {[%clk 0:01:31]}  Nxa2 {[%clk 0:00:29]} 25. Ra4 {[%clk 0:01:31]}  e4 {[%clk 0:00:30]} 26. Bg4 {[%clk 0:01:22]}  Nc3 {[%clk 0:00:27]} 27. Nxc3 {[%clk 0:01:23]}  Bxc3 {[%clk 0:00:28]} 28. Be7 {[%clk 0:01:20]}  Rfe8 {[%clk 0:00:28]} 29. Bxd6 {[%clk 0:01:19]}  Rad8 {[%clk 0:00:28]} 30. Ra6 {[%clk 0:01:16]}  Be5 {[%clk 0:00:24]} 31. Bb4 {[%clk 0:01:07]}  Rxd5 {[%clk 0:00:21]} 32. Rxa7 {[%clk 0:01:07]}  Bf4 {[%clk 0:00:14]} 33. Be2 {[%clk 0:01:07]}  e3 {[%clk 0:00:05]} 34. f3 {[%clk 0:00:24]}  Bxh6 {[%clk 0:00:05]} 35. Bc4 {[%clk 0:00:24]}  e2 {[%clk 0:00:05]} 36. Kh2 {[%clk 0:00:24]}  Rh5+ {[%clk 0:00:04]} 37. Kg3 {[%clk 0:00:25]}  e1=Q+ {[%clk 0:00:03]} 38. Bxe1 {[%clk 0:00:25]}  Rxe1 {[%clk 0:00:04]} 39. Rxf7 {[%clk 0:00:25]}  Rc1 {[%clk 0:00:03]} 40. Rc7+ {[%clk 0:00:25]}  Rxc4 {[%clk 0:00:03]} 41. Rxc4 {[%clk 0:00:26]}  Rg5+ {[%clk 0:00:04]} 42. Kf2 {[%clk 0:00:26]}  Rf5 {[%clk 0:00:05]} 43. g4 {[%clk 0:00:26]}  Rf8 {[%clk 0:00:04]} 44. Kg3 {[%clk 0:00:27]}  Bg7 {[%clk 0:00:04]} 45. f4 {[%clk 0:00:27]}  h6 {[%clk 0:00:04]} 46. Rc5 {[%clk 0:00:27]}  Kh7 {[%clk 0:00:04]} 47. Rd5 {[%clk 0:00:28]}  Rf7 {[%clk 0:00:05]} 48. f5 {[%clk 0:00:28]}  gxf5 {[%clk 0:00:05]} 49. gxf5 {[%clk 0:00:28]}  Bf6 {[%clk 0:00:05]} 50. Kf3 {[%clk 0:00:25]}  Rg7 {[%clk 0:00:05]} 51. Rd6 {[%clk 0:00:26]}  Be5 {[%clk 0:00:06]} 52. Re6 {[%clk 0:00:26]}  Bc7 {[%clk 0:00:06]} 53. Ke4 {[%clk 0:00:25]}  Bd8 {[%clk 0:00:06]} 54. f6 {[%clk 0:00:25]}  Rf7 {[%clk 0:00:05]} 55. Kf5 {[%clk 0:00:25]}  h5 {[%clk 0:00:05]} 56. Kg5 {[%clk 0:00:24]}  Bxf6+ {[%clk 0:00:05]} 57. Kxh5 {[%clk 0:00:22]}  Be7 {[%clk 0:00:05]} 58. Kg4 {[%clk 0:00:22]}  Rg7+ {[%clk 0:00:05]} 59. Kf5 {[%clk 0:00:22]}  Kg8 {[%clk 0:00:06]} 60. Rg6 {[%clk 0:00:21]}  Rxg6 {[%clk 0:00:06]} 61. Kxg6 {[%clk 0:00:22]} 1/2-1/2


[Site "https://www.chess.com"]

[Event "Titled Tuesday Blitz May 10 Early 2022"]
[White "Hambleton, Aman"]
[Black "Piesik, Piotr"]
[WhiteFideId "2606577"]
[BlackFideId "1136194"]
[WhiteElo "2552"]
[BlackElo "2190"]
[Result "0-1"]
[Round "05"]
[TimeControl "180+1"]
[Date "2022.05.10"]
[WhiteClock "0:00:01"]
[BlackClock "0:01:11"]

1. d4 {[%clk 0:03:00]}  c5 {[%clk 0:02:59]} 2. d5 {[%clk 0:03:01]}  e5 {[%clk 0:02:54]} 3. c4 {[%clk 0:02:55]}  d6 {[%clk 0:02:54]} 4. Nc3 {[%clk 0:02:54]}  Be7 {[%clk 0:02:53]} 5. g3 {[%clk 0:02:48]}  Bg5 {[%clk 0:02:51]} 6. e3 {[%clk 0:02:48]}  f5 {[%clk 0:02:51]} 7. f4 {[%clk 0:02:48]}  Bf6 {[%clk 0:02:51]} 8. Qc2 {[%clk 0:02:32]}  Nh6 {[%clk 0:02:40]} 9. Nh3 {[%clk 0:02:32]}  O-O {[%clk 0:02:39]} 10. Be2 {[%clk 0:02:30]}  a6 {[%clk 0:02:36]} 11. Nf2 {[%clk 0:02:10]}  exf4 {[%clk 0:02:23]} 12. exf4 {[%clk 0:02:05]}  Bd4 {[%clk 0:02:20]} 13. Kf1 {[%clk 0:01:40]}  Nd7 {[%clk 0:02:13]} 14. Kg2 {[%clk 0:01:19]}  Nf6 {[%clk 0:02:11]} 15. a4 {[%clk 0:01:05]}  Nfg4 {[%clk 0:02:04]} 16. Nfd1 {[%clk 0:00:55]}  Qe7 {[%clk 0:01:59]} 17. h3 {[%clk 0:00:48]}  Nf6 {[%clk 0:01:54]} 18. Bd3 {[%clk 0:00:34]}  Bd7 {[%clk 0:01:45]} 19. Bd2 {[%clk 0:00:24]}  Rae8 {[%clk 0:01:43]} 20. Nf2 {[%clk 0:00:20]}  Bxf2 {[%clk 0:01:38]} 21. Kxf2 {[%clk 0:00:20]}  Ne4+ {[%clk 0:01:38]} 22. Kg2 {[%clk 0:00:07]}  Qf6 {[%clk 0:01:35]} 23. Rae1 {[%clk 0:00:02]}  Qg6 {[%clk 0:01:28]} 24. Bxe4 {[%clk 0:00:01]}  fxe4 {[%clk 0:01:27]} 25. g4 {[%clk 0:00:01]}  Nxg4 {[%clk 0:01:23]} 26. hxg4 {[%clk 0:00:02]}  Qxg4+ {[%clk 0:01:22]} 27. Kf1 {[%clk 0:00:01]}  Qf3+ {[%clk 0:01:21]} 28. Kg1 {[%clk 0:00:01]}  Rf6 {[%clk 0:01:11]} 0-1


[Site "https://www.chess.com"]

[Event "Titled Tuesday Blitz May 10 Early 2022"]
[White "Hamley, Ryan"]
[Black "Sanchez, Robert"]
[WhiteFideId "30959497"]
[BlackFideId "2034360"]
[WhiteElo "2525"]
[BlackElo "2154"]
[Result "0-1"]
[Round "05"]
[TimeControl "180+1"]
[Date "2022.05.11"]
[WhiteClock "0:00:44"]
[BlackClock "0:01:24"]

1. e4 {[%clk 0:02:54]}  e6 {[%clk 0:02:59]} 2. d4 {[%clk 0:02:52]}  d5 {[%clk 0:02:59]} 3. Nd2 {[%clk 0:02:52]}  Nf6 {[%clk 0:02:59]} 4. e5 {[%clk 0:02:52]}  Nfd7 {[%clk 0:03:00]} 5. f4 {[%clk 0:02:52]}  c5 {[%clk 0:03:00]} 6. c3 {[%clk 0:02:52]}  Nc6 {[%clk 0:03:00]} 7. Ngf3 {[%clk 0:02:52]}  Be7 {[%clk 0:03:01]} 8. Bd3 {[%clk 0:02:52]}  a5 {[%clk 0:03:01]} 9. O-O {[%clk 0:02:52]}  a4 {[%clk 0:03:01]} 10. Kh1 {[%clk 0:02:46]}  cxd4 {[%clk 0:03:01]} 11. cxd4 {[%clk 0:02:46]}  Nb6 {[%clk 0:03:02]} 12. Qe2 {[%clk 0:02:43]}  Bd7 {[%clk 0:03:01]} 13. g4 {[%clk 0:02:38]}  Nb4 {[%clk 0:02:54]} 14. Bb5 {[%clk 0:02:34]}  g6 {[%clk 0:02:39]} 15. f5 {[%clk 0:02:22]}  Qc7 {[%clk 0:02:26]} 16. Nb1 {[%clk 0:02:06]}  Bxb5 {[%clk 0:02:24]} 17. Qxb5+ {[%clk 0:02:07]}  Qc6 {[%clk 0:02:25]} 18. Qxc6+ {[%clk 0:02:01]}  bxc6 {[%clk 0:02:26]} 19. Na3 {[%clk 0:01:57]}  Nd3 {[%clk 0:02:19]} 20. Bg5 {[%clk 0:01:45]}  Bxg5 {[%clk 0:02:16]} 21. Nxg5 {[%clk 0:01:45]}  h6 {[%clk 0:02:17]} 22. Nh3 {[%clk 0:01:31]}  Nxb2 {[%clk 0:02:03]} 23. Rab1 {[%clk 0:01:31]}  N6c4 {[%clk 0:01:59]} 24. Nxc4 {[%clk 0:01:30]}  Nxc4 {[%clk 0:02:00]} 25. Rb7 {[%clk 0:01:13]}  O-O {[%clk 0:01:56]} 26. Nf4 {[%clk 0:01:11]}  exf5 {[%clk 0:01:51]} 27. gxf5 {[%clk 0:01:10]}  Ne3 {[%clk 0:01:51]} 28. Rc1 {[%clk 0:01:03]}  Nxf5 {[%clk 0:01:51]} 29. Rxc6 {[%clk 0:01:03]}  Nxd4 {[%clk 0:01:47]} 30. Rcc7 {[%clk 0:01:00]}  Rac8 {[%clk 0:01:40]} 31. Nxd5 {[%clk 0:00:58]}  Rxc7 {[%clk 0:01:39]} 32. Rxc7 {[%clk 0:00:57]}  Rb8 {[%clk 0:01:34]} 33. Nc3 {[%clk 0:00:48]}  Rb2 {[%clk 0:01:28]} 34. Ra7 {[%clk 0:00:44]}  Nf3 {[%clk 0:01:24]} 0-1


[Site "https://www.chess.com"]

[Event "Titled Tuesday Blitz May 10 Early 2022"]
[White "Hnydiuk, Aleksander"]
[Black "Jumabayev, Rinat"]
[WhiteFideId "1109057"]
[BlackFideId "13702661"]
[WhiteElo "2374"]
[BlackElo "2561"]
[Result "0-1"]
[Round "05"]
[TimeControl "180+1"]
[Date "2022.05.11"]
[WhiteClock "0:00:07"]
[BlackClock "0:00:14"]

1. Nf3 {[%clk 0:03:00]}  Nf6 {[%clk 0:02:58]} 2. c4 {[%clk 0:03:00]}  b6 {[%clk 0:02:59]} 3. g3 {[%clk 0:02:59]}  Bb7 {[%clk 0:02:58]} 4. Bg2 {[%clk 0:03:00]}  g6 {[%clk 0:02:58]} 5. O-O {[%clk 0:03:00]}  Bg7 {[%clk 0:02:58]} 6. d4 {[%clk 0:02:59]}  O-O {[%clk 0:02:57]} 7. Qc2 {[%clk 0:02:59]}  e6 {[%clk 0:02:55]} 8. Nc3 {[%clk 0:02:58]}  d5 {[%clk 0:02:56]} 9. cxd5 {[%clk 0:02:58]}  exd5 {[%clk 0:02:56]} 10. Bf4 {[%clk 0:02:56]}  Na6 {[%clk 0:02:39]} 11. Rac1 {[%clk 0:02:54]}  Ne4 {[%clk 0:02:33]} 12. Rfd1 {[%clk 0:02:27]}  Nd6 {[%clk 0:02:30]} 13. Ne5 {[%clk 0:02:22]}  Nf5 {[%clk 0:02:28]} 14. e4 {[%clk 0:02:04]}  dxe4 {[%clk 0:02:21]} 15. Nxe4 {[%clk 0:02:04]}  Nxd4 {[%clk 0:02:04]} 16. Qc4 {[%clk 0:01:35]}  c5 {[%clk 0:01:47]} 17. Nf6+ {[%clk 0:01:22]}  Bxf6 {[%clk 0:01:30]} 18. Bxb7 {[%clk 0:01:22]}  b5 {[%clk 0:01:18]} 19. Qf1 {[%clk 0:01:13]}  Qe7 {[%clk 0:00:50]} 20. Bxa8 {[%clk 0:00:55]}  Rxa8 {[%clk 0:00:51]} 21. Re1 {[%clk 0:00:38]}  Bxe5 {[%clk 0:00:42]} 22. Qg2 {[%clk 0:00:38]}  Re8 {[%clk 0:00:33]} 23. Bxe5 {[%clk 0:00:27]}  Nb4 {[%clk 0:00:20]} 24. Re3 {[%clk 0:00:17]}  Nf5 {[%clk 0:00:14]} 25. Ree1 {[%clk 0:00:07]}  Nd3 {[%clk 0:00:13]} 26. Bc3 {[%clk 0:00:04]}  Nxe1 {[%clk 0:00:13]} 27. Rxe1 {[%clk 0:00:05]}  Qxe1+ {[%clk 0:00:12]} 28. Bxe1 {[%clk 0:00:05]}  Rxe1+ {[%clk 0:00:13]} 29. Qf1 {[%clk 0:00:06]}  Rxf1+ {[%clk 0:00:13]} 30. Kxf1 {[%clk 0:00:07]}  Kf8 {[%clk 0:00:14]} 0-1


[Site "https://www.chess.com"]

[Event "Titled Tuesday Blitz May 10 Early 2022"]
[White "Horak, Martin"]
[Black "Gatterer, Florian"]
[WhiteFideId "367095"]
[BlackFideId "811688"]
[WhiteElo "1997"]
[BlackElo "2218"]
[Result "1/2-1/2"]
[Round "05"]
[TimeControl "180+1"]
[Date "2022.05.11"]
[WhiteClock "0:00:34"]
[BlackClock "0:01:39"]

1. d4 {[%clk 0:03:00]}  Nf6 {[%clk 0:02:58]} 2. Nf3 {[%clk 0:03:00]}  e6 {[%clk 0:02:57]} 3. c4 {[%clk 0:02:59]}  d5 {[%clk 0:02:56]} 4. Nc3 {[%clk 0:02:59]}  c5 {[%clk 0:02:55]} 5. cxd5 {[%clk 0:02:50]}  Nxd5 {[%clk 0:02:54]} 6. g3 {[%clk 0:02:31]}  Be7 {[%clk 0:02:51]} 7. Bg2 {[%clk 0:02:30]}  Nxc3 {[%clk 0:02:51]} 8. bxc3 {[%clk 0:02:29]}  cxd4 {[%clk 0:02:48]} 9. cxd4 {[%clk 0:02:30]}  O-O {[%clk 0:02:47]} 10. O-O {[%clk 0:02:30]}  Nc6 {[%clk 0:02:47]} 11. Bf4 {[%clk 0:02:13]}  Bf6 {[%clk 0:02:45]} 12. e3 {[%clk 0:02:03]}  h6 {[%clk 0:02:38]} 13. Rb1 {[%clk 0:02:00]}  g5 {[%clk 0:02:33]} 14. Be5 {[%clk 0:02:00]}  Nxe5 {[%clk 0:02:27]} 15. Nxe5 {[%clk 0:01:58]}  Bxe5 {[%clk 0:02:21]} 16. dxe5 {[%clk 0:01:59]}  Qa5 {[%clk 0:02:06]} 17. Qd4 {[%clk 0:01:32]}  Rd8 {[%clk 0:02:02]} 18. Qb2 {[%clk 0:01:03]}  Rd2 {[%clk 0:02:00]} 19. Qb5 {[%clk 0:00:49]}  Qxb5 {[%clk 0:01:51]} 20. Rxb5 {[%clk 0:00:50]}  Rb8 {[%clk 0:01:39]} 21. a3 {[%clk 0:00:41]}  b6 {[%clk 0:01:40]} 22. Rc1 {[%clk 0:00:38]}  Ba6 {[%clk 0:01:39]} 23. Rb3 {[%clk 0:00:34]}  Rbd8 {[%clk 0:01:39]} 1/2-1/2


[Site "https://www.chess.com"]

[Event "Titled Tuesday Blitz May 10 Early 2022"]
[White "Hua, Lefong"]
[Black "Chernomordik, Pavel"]
[WhiteFideId "2602253"]
[BlackFideId "2804530"]
[WhiteElo "2607"]
[BlackElo "2220"]
[Result "1-0"]
[Round "05"]
[TimeControl "180+1"]
[Date "2022.05.11"]
[WhiteClock "0:00:14"]
[BlackClock "0:00:01"]

1. d4 {[%clk 0:03:00]}  g6 {[%clk 0:02:59]} 2. c4 {[%clk 0:02:59]}  Bg7 {[%clk 0:02:59]} 3. e4 {[%clk 0:02:59]}  Nc6 {[%clk 0:02:58]} 4. Ne2 {[%clk 0:02:58]}  e5 {[%clk 0:02:54]} 5. Be3 {[%clk 0:02:55]}  exd4 {[%clk 0:02:53]} 6. Nxd4 {[%clk 0:02:55]}  Qf6 {[%clk 0:02:53]} 7. Nxc6 {[%clk 0:02:23]}  dxc6 {[%clk 0:02:52]} 8. Nc3 {[%clk 0:02:20]}  Qe7 {[%clk 0:02:52]} 9. Qc2 {[%clk 0:02:13]}  Nf6 {[%clk 0:02:50]} 10. f3 {[%clk 0:02:11]}  O-O {[%clk 0:02:48]} 11. Be2 {[%clk 0:02:11]}  Nh5 {[%clk 0:02:45]} 12. O-O {[%clk 0:02:05]}  f5 {[%clk 0:02:44]} 13. Bd3 {[%clk 0:01:52]}  Be6 {[%clk 0:02:29]} 14. Rfe1 {[%clk 0:01:45]}  Qf7 {[%clk 0:02:18]} 15. b3 {[%clk 0:01:38]}  Qf6 {[%clk 0:02:13]} 16. Rac1 {[%clk 0:01:35]}  Rad8 {[%clk 0:02:05]} 17. Bf1 {[%clk 0:01:30]}  Qh4 {[%clk 0:01:53]} 18. exf5 {[%clk 0:01:22]}  Bxf5 {[%clk 0:01:49]} 19. Qf2 {[%clk 0:01:22]}  Qf6 {[%clk 0:01:44]} 20. g4 {[%clk 0:01:14]}  Rde8 {[%clk 0:01:09]} 21. gxf5 {[%clk 0:01:00]}  Qxf5 {[%clk 0:01:07]} 22. Bg2 {[%clk 0:00:50]}  Be5 {[%clk 0:01:02]} 23. Ne4 {[%clk 0:00:48]}  Nf4 {[%clk 0:00:52]} 24. Ng3 {[%clk 0:00:43]}  Qf7 {[%clk 0:00:48]} 25. Bxf4 {[%clk 0:00:42]}  Qxf4 {[%clk 0:00:45]} 26. Kh1 {[%clk 0:00:32]}  h5 {[%clk 0:00:39]} 27. Rcd1 {[%clk 0:00:30]}  Bc3 {[%clk 0:00:25]} 28. Re4 {[%clk 0:00:25]}  Rxe4 {[%clk 0:00:24]} 29. Nxe4 {[%clk 0:00:26]}  Be5 {[%clk 0:00:24]} 30. Qg3 {[%clk 0:00:24]}  Qf5 {[%clk 0:00:22]} 31. Qg5 {[%clk 0:00:21]}  Bf4 {[%clk 0:00:12]} 32. Qxf5 {[%clk 0:00:20]}  gxf5 {[%clk 0:00:12]} 33. Nc5 {[%clk 0:00:19]}  Re8 {[%clk 0:00:12]} 34. Nxb7 {[%clk 0:00:17]}  Re2 {[%clk 0:00:10]} 35. Na5 {[%clk 0:00:17]}  Rxa2 {[%clk 0:00:09]} 36. Nxc6 {[%clk 0:00:18]}  Kf8 {[%clk 0:00:08]} 37. Nd4 {[%clk 0:00:17]}  Be5 {[%clk 0:00:03]} 38. Nxf5 {[%clk 0:00:16]}  Kf7 {[%clk 0:00:03]} 39. Ne3 {[%clk 0:00:15]}  Kg6 {[%clk 0:00:01]} 40. Nd5 {[%clk 0:00:14]}  c6 {[%clk 0:00:01]} 41. Nb4 {[%clk 0:00:14]} 1-0


[Site "https://www.chess.com"]